Cogmind - Beta 13 @@@ ROGUE MODE // 2024.04.27 @ 02:59:57 Player: CatPlusPlus Result: Destroyed by C-40 Crusher with Compactor Performance ------------- Evolutions (6) 3000 Regions Visited (19) 3800 Robots Destroyed (197) 985 Value Destroyed (5043) 5043 Prototype IDs (32) 640 Alien Tech Used (0) 0 Bonus (-1805) -1805 TOTAL SCORE: 11663 Bonus ------- High Alert Combat Kills 263 Follower Combat Kills 1093 Met Data Miner 300 Met Imprinter 300 Built Enhanced Grunts 300 A7 Reached Mainframe 300 Friendly Fire -4361 Cogmind --------- Core Integrity 0/1150 Matter 74/300 Energy 100/100 System Corruption 12% Temperature Cool (0) Movement Core (50) Location -4/Waste Parts ------- > --- POWER (2) -------- (None) > --- PROPULSION (6) --- (None) > --- UTILITY (8) ------ (None) > --- WEAPON (3) ------- (None) > --- INVENTORY (5) ---- Light Antimatter Reactor Experimental Thermal Shield Improved Hacking Suite Peak State ------------ > --- POWER ------------ Light Angular Momentum Engine Micro Fission Core > --- PROPULSION ------- Advanced Medium Treads Advanced Medium Treads Gravmag System Combat Gravmag System Combat Gravmag System Combat Gravmag System > --- UTILITY ---------- Advanced Cooling System Large Storage Unit Advanced Sensor Array Advanced Signal Interpreter Centrium Medium Armor Plating Centrium Medium Armor Plating Improved Hacking Suite Improved System Shield > --- WEAPON ----------- Long-range Proton Cannon Neutron Cannon KE Penetrator > --- INVENTORY -------- Advanced Energy Well Long-range Terrain Scanner Advanced Terrain Scan Processor Seismic Detector Experimental Thermal Shield Improved Hacking Suite Improved Hacking Suite Hacking Drone Bay Micro-nuke Launcher Advanced Datajack Great Maul Power Sword [Rating: 118] Favorites ----------- Power Light Nuclear Core Engine Makeshift Power Source Power Core Light Nuclear Core Propulsion Light Treads Treads Light Treads Wheel Armored Wheel Hover Unit Combat Gravmag System Flight Unit Improved Flight Unit Utility Cargo Storage Unit Device Advanced Sensor Array Storage Cargo Storage Unit Processor Advanced Signal Interpreter Hackware Improved Hacking Suite Protection Light Armor Plating Weapon Power Sword Energy Gun Advanced Beam Rifle Energy Cannon Long-range Proton Cannon Ballistic Gun Heavy Assault Rifle Ballistic Cannon Hypervelocity Gauss Cannon Launcher Mini Grenade Launcher Special Weapon Mining Laser Impact Weapon Heavy Hammer Slashing Weapon Power Sword Special Melee Weapon Datajack Build | -11 -10 -9 -8 -7 -7 -7 -7 -6 -6 -6 -6 -6 -5 -5 -5 -5 -5 -4 -4 ------- Run | Yrd Mat Mat Mat Fac Low Low Zio Pro Fac Low Low Dat Pro Fac Ext Cet Arc Fac Was Slots Evolved 12 | . . 2 2 2 . . . . 2 . . . . 2 . . . 2 . Power 1 | . . . . . . . . . . . . . . 1 . . . . . Propulsion 4 | . . 1 1 1 . . . . . . . . . 1 . . . . . Utility 6 | . . 1 1 1 . . . . 2 . . . . . . . . 1 . Weapon 1 | . . . . . . . . . . . . . . . . . . 1 . Parts Attached 414 | 7 29 71 70 11 10 13 8 15 15 15 14 1 16 20 49 5 19 20 6 Power 29 | 1 2 7 8 . . . 1 . 1 . . . . 1 5 . 1 1 1 Engine 18 | 1 2 7 1 . . . 1 . 1 . . . . . 3 . 1 1 . Core 11 | . . . 7 . . . . . . . . . . 1 2 . . . 1 Reactor . | . . . . . . . . . . . . . . . . . . . . Propulsion 89 | 2 6 21 23 1 . . 6 . 1 . . . . 3 12 . 6 3 5 Treads 49 | 2 5 17 19 . . . . . . . . . . . . . . 2 4 Leg . | . . . . . . . . . . . . . . . . . . . . Wheel 5 | . . 4 . . . . . . . . . . . . . . . . 1 Hover 13 | . . . . . . . . . . . . . . . 7 . 6 . . Flight 22 | . 1 . 4 1 . . 6 . 1 . . . . 3 5 . . 1 . Utility 156 | 2 12 15 7 7 4 8 1 5 11 7 8 1 10 10 26 2 9 11 . Device 78 | 1 5 3 2 3 2 4 . 3 6 4 4 1 6 5 17 1 2 9 . Storage 8 | 1 2 1 . 1 . . . . . . . . . 1 1 . 1 . . Processor 3 | . . . . 1 . . . . 1 . . . . . . . 1 . . Hackware 2 | . . . . . . . . . . . . . . . . . 2 . . Protection 65 | . 5 11 5 2 2 4 1 2 4 3 4 . 4 4 8 1 3 2 . Artifact . | . . . . . . . . . . . . . . . . . . . . Weapon 140 | 2 9 28 32 3 6 5 . 10 2 8 6 . 6 6 6 3 3 5 . Energy Gun 28 | . 2 6 20 . . . . . . . . . . . . . . . . Energy Cannon 30 | . . 1 . . 3 2 . 5 1 4 3 . 3 3 1 . 3 1 . Ballistic Gun 22 | 2 5 11 2 . . . . . . . . . . . . . . 2 . Ballistic Cannon 1 | . . . . . . . . . . . . . . . 1 . . . . Launcher 26 | . . 1 3 1 . . . 5 . 4 3 . 3 3 1 1 . 1 . Special Weapon 2 | . 1 1 . . . . . . . . . . . . . . . . . Impact Weapon 10 | . . 6 4 . . . . . . . . . . . . . . . . Slashing Weapon 15 | . . . 2 1 3 3 . . 1 . . . . . 2 2 . 1 . Piercing Weapon . | . . . . . . . . . . . . . . . . . . . . Special Melee Weapon 6 | . 1 2 1 1 . . . . . . . . . . 1 . . . . Unidentified Prototypes 16 | . 1 2 6 . . . . . 1 . 1 . . . . 1 3 . 1 Parts Lost 28 | . . . 2 . . . . . . . . . . . 2 . . 17 7 Power 4 | . . . . . . . . . . . . . . . 1 . . 3 . Propulsion 9 | . . . 1 . . . . . . . . . . . . . . 7 1 Utility 8 | . . . . . . . . . . . . . . . 1 . . 2 5 Weapon 7 | . . . 1 . . . . . . . . . . . . . . 5 1 Highest Loss Streak 11 | . . . 1 . . . . . . . . . . . 1 . . 11 7 To Critical Strikes 1 | . . . . . . . . . . . . . . . . . . 1 . Average Slot Usage (%) 93 | . 99 87 89 99 100 100 100 100 100 100 100 100 98 100 96 87 97 90 44 Engine 7 | . 14 11 3 . . . 5 7 6 6 6 6 6 5 5 5 5 4 . Core 2 | . . . 5 7 7 7 1 . . . . . . 5 4 5 5 4 . Treads 17 | . 27 31 35 . . . . . . . . . . . . . . 2 . Hover 2 | . . . . . . . . . . . . . . . 5 . 30 25 8 Flight 12 | . . . . 38 38 38 38 38 33 33 33 33 33 35 27 23 2 . . Device 10 | . 5 1 8 16 15 17 14 15 22 20 21 20 20 21 20 16 10 12 12 Storage 8 | . 14 11 9 7 7 7 7 7 6 6 6 6 6 5 5 5 5 5 4 Processor 2 | . . . . 6 7 7 7 7 6 6 6 6 6 5 5 5 5 5 4 Protection 8 | . 8 9 9 6 7 4 7 7 10 12 11 13 11 6 6 11 5 5 . Energy Gun 4 | . 2 4 16 . . . . . . . . . . . . . . . . Ballistic Gun 6 | . 24 14 . . . . . . . . . . . . . . . 3 . Launcher 1 | . . . . . 7 7 7 6 6 5 5 6 5 5 4 . . . . Slashing Weapon 2 | . . . . 6 6 6 7 7 6 6 6 6 6 5 5 10 6 3 4 Naked Turns 17 | . . . . . . . . . . . . . . . . . . . 17 Heaviest Build 160 | 13 54 159 160 25 25 25 25 24 28 29 28 29 53 42 68 53 57 74 27 Greatest Support 83 | 40 40 63 83 25 25 25 28 28 29 29 29 29 29 44 65 49 69 69 28 Greatest Overweight (x) 18 | 1 2 13 7 . . . . . . . . . 1 . 2 1 18 10 1 Average Overweight (x) . | . . 3 1 . . . . . . . . . . . . . 1 . . Largest Inventory Capacity 30 | 8 20 30 30 30 10 10 10 10 10 10 10 10 10 15 15 15 15 15 15 Average Capacity 20 | 7 14 29 30 10 10 10 10 10 10 10 10 10 10 13 15 15 15 15 13 Most Carried 30 | 8 20 30 30 17 10 10 10 10 10 10 10 10 10 15 15 15 15 15 15 Average Carried 20 | 4 13 29 29 9 9 10 9 10 9 9 9 10 9 12 14 14 14 13 13 Final Capacity 30 | 8 20 30 30 10 10 10 10 10 10 10 10 10 10 15 15 15 15 15 5 Final Carried 30 | 8 20 30 18 10 10 10 10 10 10 10 10 10 10 15 15 15 15 15 3 Class Distribution -------------------- 43% | Hauler-Mutant 26% | Scout 10% | Mutant 6% | Commander-Mutant 4% | Scavenger-Mutant 3% | Sprinter Dominant Class ---------------- Mutant | -10/Materials Hauler-Mutant | -9/Materials Hauler-Mutant | -8/Materials Scout | -7/Factory Scout | -7/Lower Caves Scout | -7/Lower Caves Scout | -7/Zion Scout | -6/Proximity Caves Scout | -6/Factory Scout | -6/Lower Caves Scout | -6/Lower Caves Scout | -6/Data Miner Scout | -5/Proximity Caves Scout | -5/Factory Scout | -5/Extension Commander-Mutant | -5/Cetus Commander-Mutant | -5/Archives Scavenger-Scout | -4/Factory Hacker-Mutant | -4/Waste Resources | -11 -10 -9 -8 -7 -7 -7 -7 -6 -6 -6 -6 -6 -5 -5 -5 -5 -5 -4 -4 ----------- Run | Yrd Mat Mat Mat Fac Low Low Zio Pro Fac Low Low Dat Pro Fac Ext Cet Arc Fac Was Matter Collected 6111 | 290 497 1370 960 170 90 160 50 270 80 210 160 . 265 85 1137 62 190 65 . Remotely 48 | . . 48 . . . . . . . . . . . . . . . . . Salvage Created 8687 | 87 735 1979 2502 181 22 110 . 249 . 150 143 . 113 108 675 . 1041 592 . Parts 436 | 7 52 103 122 10 3 1 . 12 . 4 3 . 4 2 31 . 58 24 . Haulers Intercepted 15 | . 2 5 5 1 . . . . . . 1 . . 1 . . . . . Recyclers Shooed 12 | . 6 3 2 . . . . . . . . . . . . . . 1 . Parts Field Recycled . | . . . . . . . . . . . . . . . . . . . . Retrieved Matter . | . . . . . . . . . . . . . . . . . . . . Parts Self-Destructed 31 | . . . . . 4 . . 11 . 4 10 . 2 . . . . . . Prevented 7 | . . . . . . . . . . 1 3 . 3 . . . . . . Kills | -11 -10 -9 -8 -7 -7 -7 -7 -6 -6 -6 -6 -6 -5 -5 -5 -5 -5 -4 -4 ------- Run | Yrd Mat Mat Mat Fac Low Low Zio Pro Fac Low Low Dat Pro Fac Ext Cet Arc Fac Was Combat Hostiles Destroyed 118 | . 18 30 46 . . . . 6 . . 1 . 2 . 4 . . 11 . Melee 8 | . . . . . . . . . . . . . . . 2 . . 6 . Guns 84 | . 18 27 39 . . . . . . . . . . . . . . . . Cannons 3 | . . . . . . . . . . . . . . . 2 . . 1 . AOE 18 | . . 3 5 . . . . 6 . . . . 2 . . . . 2 . Classes Destroyed 16 | 2 4 5 . . 1 . . . . . . . 1 . . . . 3 . Worker 7 | . . 4 1 . . . . . . . . . . . . . . 2 . Builder 1 | . . . . . . . . . . . . . . . . . . 1 . Tunneler 7 | 2 2 . 1 . . . . . . . . . . . . . . 2 . Hauler 15 | . 2 5 5 1 . . . . . . 1 . . 1 . . . . . Recycler 15 | 1 1 5 3 1 . . . . . . . . . . 3 . . 1 . Minesweeper 2 | . . . . . 1 . . . . 1 . . . . . . . . . Operator 13 | . . 1 1 1 . . . . . . . . . . 1 . 9 . . Drone 2 | . . . . . . . . . . . . . 2 . . . . . . Watcher 14 | . 2 5 4 1 . . . . . . . . . . 2 . . . . Swarmer 33 | . 9 3 9 . . . . 6 . . . . . . 1 . . 5 . Grunt 52 | . 9 14 26 . . . . . . . 1 . . . 1 . . 1 . Brawler 5 | . . 2 3 . . . . . . . . . . . . . . . . Duelist 1 | . . 1 . . . . . . . . . . . . . . . . . Sentry 19 | . . 10 8 . . . . . . . . . . . 1 . . . . Hunter 4 | . . . . . . . . . . . . . . . . . . 4 . Programmer 1 | . . . . . . . . . . . . . . . . . . 1 . Enhanced Grunt 5 | . . . . . . . . . . . . . . . . . 5 . . Decomposer 5 | . . . . . . 2 . . . 3 . . . . . . . . . Packrat 2 | . . . . . . . . . . . . . 2 . . . . . . Thug 3 | . . . . . . . . . . . . . . . 1 . 2 . . Savage 2 | . . . . . . . . . . . . . . . . . 2 . . Best Kill Streak 9 | 2 4 4 9 2 1 . . 6 . 1 1 . 2 1 2 . 8 6 . Combat Bots Only 7 | . 4 3 7 . . . . 6 . . 1 . 2 . 2 . . 5 . Max Kills in Single Turn 3 | 1 1 3 2 1 1 1 . 3 . 1 1 . 1 1 1 . 1 2 . Gunslinging 1 | . . 1 1 . . . . . . . . . . . . . . . . Exploded 3 | . . 3 2 . . . . 3 . . . . 1 . . . . 1 . Melee 1 | . . . . . . . . . . . . . . . 1 . . 1 . Uniques/NPCs Destroyed . | . . . . . . . . . . . . . . . . . . . . Combat | -11 -10 -9 -8 -7 -7 -7 -7 -6 -6 -6 -6 -6 -5 -5 -5 -5 -5 -4 -4 -------- Run | Yrd Mat Mat Mat Fac Low Low Zio Pro Fac Low Low Dat Pro Fac Ext Cet Arc Fac Was Hostile Shots Fired 876 | . 80 156 247 9 . . . 22 . 3 8 . . . 27 9 . 297 18 Missed 254 | . 19 41 66 5 . . . 12 . 1 5 . . . 11 5 . 87 2 Damage Taken 9829 | . 569 1479 2660 32 . . . 166 . 38 58 . . . 351 77 . 3687 712 Core 1957 | . 137 195 250 12 . . . 77 . . 19 . . . 98 15 . 464 690 Absorbed by Shields 146 | . . . . . . . . . . . . . . . 100 46 . . . Redirected to Shielding 100 | . . . . . . . . 20 . 24 12 . . . 44 . . . . Regen/Repaired (Parts) 175 | . . 161 . 14 . . . . . . . . . . . . . . . Core Remaining (%) 74 | 100 45 51 54 . . . . 87 . . . . 97 . . . 88 . . Volleys Fired 490 | 10 87 130 144 . 8 4 . 16 1 5 6 . 8 4 16 2 . 49 . Largest 3 | 2 2 2 2 . 1 1 . 1 1 1 1 . 1 1 1 1 . 3 . Hottest 204 | 40 100 100 122 . 65 65 . 85 85 85 85 . 85 90 90 43 . 204 . Shots Fired 858 | 20 169 253 279 . 8 4 . 16 1 5 6 . 8 4 16 2 . 67 . Gun 732 | 20 168 251 274 . . . . . . . . . . . . . . 19 . Cannon 99 | . . . . . 8 4 . 7 1 5 5 . 6 4 16 . . 43 . Launcher 25 | . . 1 5 . . . . 9 . . 1 . 2 . . 2 . 5 . Special 2 | . 1 1 . . . . . . . . . . . . . . . . . Kinetic 419 | 20 159 215 4 . . . . . . . . . . . 2 . . 19 . Thermal 402 | . 10 37 269 . 8 4 . 7 1 5 5 . 6 4 14 . . 32 . Explosive 23 | . . 1 5 . . . . 9 . . 1 . 2 . . . . 5 . Electromagnetic 14 | . . . 1 . . . . . . . . . . . . 2 . 11 . Robot Hit Streak 18 | 7 18 14 14 . . . . 2 . . 1 . . . 5 . . 10 . Robot Miss Streak 8 | 2 4 5 8 . . . . . . . 1 . . . 1 . . 3 . Penetration Max 1 | . . . . . . . . . . . . . . . . . . 1 . Secondary Targets 10 | . . 1 9 . . . . . . . . . . . . . . . . Max Gunslinging Chain 1 | . . 1 1 . . . . . . . . . . . . . . . . Shots Hit Robots 630 | 14 108 176 192 5 1 3 . 5 . 5 6 . 2 3 23 . 33 54 . Core Hits 330 | 6 43 99 97 4 . 1 . 10 . 4 2 . 2 1 8 2 16 34 1 Critical Kills 2 | 1 1 . . . . . . . . . . . . . . . . . . Critical Parts Destroyed 2 | 1 . . . . . . . . . . . . . . . . . 1 . Critical Strikes 29 | 2 1 1 20 . . . . . . . 1 . . . . . 3 1 . Burn 20 | . . . 20 . . . . . . . . . . . . . . . . Destroy 5 | 2 1 1 . . . . . . . . . . . . . . . 1 . Sever 4 | . . . . . . . . . . . 1 . . . . . 3 . . Melee Attacks 333 | . 2 20 16 46 12 11 1 19 18 20 12 . 12 32 35 12 34 31 . Impact 32 | . . 20 12 . . . . . . . . . . . . . . . . Slashing 299 | . . . 4 46 12 11 1 19 18 20 12 . 12 32 35 12 34 31 . Piercing . | . . . . . . . . . . . . . . . . . . . . Sneak Attacks 60 | . . . 1 3 1 2 . . . 4 1 . 2 2 8 . 32 4 . Combat Hostiles 2 | . . . . . . . . . . . . . . . 2 . . . . Follow-up Attacks 1 | . . . . . . . . . . . . . . . . . 1 . . Damage Inflicted 18219 | 103 1098 2818 4112 294 74 308 . 833 . 419 349 . 290 231 1200 103 2804 3127 56 Guns 7570 | 103 1043 2643 3436 . . . . . . . . . . . . . . 345 . Cannons 1311 | . . . . . . . . . . . 30 . . . 273 . . 1008 . Explosions 2438 | . . 128 498 . . . . 522 . . 38 . 118 . . 103 . 1031 . Melee 6687 | . . . 125 294 74 308 . 311 . 419 281 . 172 231 927 . 2804 741 . Ramming 213 | . 55 47 53 . . . . . . . . . . . . . . 2 56 Kinetic 3645 | 103 966 2213 18 . . . . . . . . . . . . . . 345 . Thermal 4964 | . 77 430 3406 . . . . . . . 30 . . . 273 . . 748 . Explosive 2335 | . . 128 498 . . . . 522 . . 38 . 118 . . . . 1031 . Electromagnetic 375 | . . . 12 . . . . . . . . . . . . 103 . 260 . Impact 125 | . . . 125 . . . . . . . . . . . . . . . . Slashing 6562 | . . . . 294 74 308 . 311 . 419 281 . 172 231 927 . 2804 741 . Piercing . | . . . . . . . . . . . . . . . . . . . . Highest Corruption 12 | . . . . . . . . . . . . . . . . . . 9 12 Average Corruption 6 | . . . . . . . . . . . . . . . . . . 5 9 Corruption Purged . | . . . . . . . . . . . . . . . . . . . . Corruption Blocked . | . . . . . . . . . . . . . . . . . . . . Effects 16 | . . . . . . . . . . . . . . . . . . 9 7 Message Errors 3 | . . . . . . . . . . . . . . . . . . 1 2 Matter Fused 4 | . . . . . . . . . . . . . . . . . . 3 1 Heat Flow Errors 1 | . . . . . . . . . . . . . . . . . . 1 . Energy Discharges 1 | . . . . . . . . . . . . . . . . . . . 1 Parts Rejected 1 | . . . . . . . . . . . . . . . . . . 1 . Parts Fused 1 | . . . . . . . . . . . . . . . . . . . 1 Data Loss (minor) 3 | . . . . . . . . . . . . . . . . . . 1 2 Data Loss (major) 1 | . . . . . . . . . . . . . . . . . . 1 . Misfires 1 | . . . . . . . . . . . . . . . . . . 1 . Overload Shots . | . . . . . . . . . . . . . . . . . . . . Overflow Damage 1680 | . . 36 81 25 34 167 . 249 . 57 . . 163 44 137 . 519 168 . Projectiles 69 | . . . . . . . . . . . . . . . . . . 69 . Explosions 73 | . . 36 . . . . . 37 . . . . . . . . . . . Melee 1538 | . . . 81 25 34 167 . 212 . 57 . . 163 44 137 . 519 99 . Knockbacks 1 | . . 1 . . . . . . . . . . . . . . . . . Impact 1 | . . 1 . . . . . . . . . . . . . . . . . Kinetic . | . . . . . . . . . . . . . . . . . . . . Secondary . | . . . . . . . . . . . . . . . . . . . . Self-Inflicted Damage 224 | . . . 69 . . . . 14 . . . . . . . . . 116 25 Shots 7 | . . . 3 . . . . 1 . . . . . . . . . 3 . Rammed 41 | . 14 2 5 . . . . . . . . . . . . . . 1 19 Targets Rammed 43 | . 14 4 5 . . . . . . . . . . . . . . 1 19 Kicked . | . . . . . . . . . . . . . . . . . . . . Crushed 2 | . . 2 . . . . . . . . . . . . . . . . . Highest Temperature 305 | . 105 305 140 14 104 60 195 141 . 20 30 . 30 . 145 . 45 84 . Average Temperature 35 | . 16 41 26 1 22 13 64 50 . 9 12 . 12 . 33 . 21 27 . Received Heat Transfer 2444 | . 162 618 1386 12 . . . . . 18 27 . . . 45 8 . 168 . Siege Activations . | . . . . . . . . . . . . . . . . . . . . Robots Corrupted 1 | . . . . . . . . . . . . . . . . . . 1 . Combat Hostiles 1 | . . . . . . . . . . . . . . . . . . 1 . Parts Fried 2 | . . . 1 . . . . . . . . . . . . . . 1 . Impact Corruptions 3 | . . . 3 . . . . . . . . . . . . . . . . Robots Melted 2 | . . . 2 . . . . . . . . . . . . . . . . Combat Hostiles 2 | . . . 2 . . . . . . . . . . . . . . . . Parts Melted 12 | . . . 12 . . . . . . . . . . . . . . . . Heat Transferred 9184 | . 175 545 8131 . . . . . . . 37 . . . 296 . . . . Parts Sabotaged . | . . . . . . . . . . . . . . . . . . . . Parts Stolen . | . . . . . . . . . . . . . . . . . . . . Parts Stripped . | . . . . . . . . . . . . . . . . . . . . Power Chain Reactions . | . . . . . . . . . . . . . . . . . . . . Alert | -11 -10 -9 -8 -7 -7 -7 -7 -6 -6 -6 -6 -6 -5 -5 -5 -5 -5 -4 -4 ------- Run | Yrd Mat Mat Mat Fac Low Low Zio Pro Fac Low Low Dat Pro Fac Ext Cet Arc Fac Was Peak Influence 743 | 15 224 447 743 475 . . . . 110 . . . . 407 472 180 312 241 117 Initial 337 | . 9 22 188 337 . . . . 6 . . . . 300 42 61 72 . 72 Average 209 | 6 74 225 371 395 . . . . 54 . . . . 284 109 164 198 123 81 Maximum Alert Level 3 | . 1 2 3 2 . . . . . . . . . 2 2 . 1 1 . Low Security (%) 53 | 100 96 47 6 . . . . . 100 . . . . 13 79 100 54 96 100 Level 1 29 | . 3 29 57 51 . . . . . . . . . 81 13 . 45 3 . Level 2 16 | . . 23 31 48 . . . . . . . . . 5 7 . . . . Level 3 . | . . . 3 . . . . . . . . . . . . . . . . Level 4 . | . . . . . . . . . . . . . . . . . . . . Level 5 . | . . . . . . . . . . . . . . . . . . . . High Security . | . . . . . . . . . . . . . . . . . . . . Max Security . | . . . . . . . . . . . . . . . . . . . . Squads Dispatched 31 | . 5 4 12 1 . . . . 3 . . . . 1 1 . . 4 . Investigation 11 | . 4 1 2 1 . . . . 2 . . . . . . . . 1 . Extermination 4 | . . . . . . . . . 1 . . . . 1 . . . 2 . Reinforcement 8 | . 1 3 2 . . . . . . . . . . . 1 . . 1 . Assault 1 | . . . 1 . . . . . . . . . . . . . . . . Garrison 7 | . . . 7 . . . . . . . . . . . . . . . . Intercept . | . . . . . . . . . . . . . . . . . . . . Searches Triggered 1 | . . . . . . . . . . . . . . 1 . . . . . Construction Impeded 2 | . . . . . . . . . . . . . . . 1 . . 1 . Haulers Reinforced . | . . . . . . . . . . . . . . . . . . . . Active Scanning Responses . | . . . . . . . . . . . . . . . . . . . . Cargo Convoy Interrupts . | . . . . . . . . . . . . . . . . . . . . Stealth | -11 -10 -9 -8 -7 -7 -7 -7 -6 -6 -6 -6 -6 -5 -5 -5 -5 -5 -4 -4 --------- Run | Yrd Mat Mat Mat Fac Low Low Zio Pro Fac Low Low Dat Pro Fac Ext Cet Arc Fac Was Distress Signals 16 | . 2 4 2 1 . . . . . . . . . . 1 2 . 4 . Communications Jammed . | . . . . . . . . . . . . . . . . . . . . Distress Signals . | . . . . . . . . . . . . . . . . . . . . Times Spotted 230 | . 28 41 62 4 . . . 7 5 2 5 . 7 1 31 5 3 24 5 Peak Tracking Total 10 | . 5 5 5 3 . . . 5 5 1 5 . 4 4 6 5 1 10 5 Tactical Retreats 22 | . 1 . . 2 . . . . 1 1 4 . 2 2 6 . . 3 . Traps | -11 -10 -9 -8 -7 -7 -7 -7 -6 -6 -6 -6 -6 -5 -5 -5 -5 -5 -4 -4 ------- Run | Yrd Mat Mat Mat Fac Low Low Zio Pro Fac Low Low Dat Pro Fac Ext Cet Arc Fac Was Traps Triggered 6 | . . . 1 . . . . . 2 . . . . . 2 . . 1 . Indirectly . | . . . . . . . . . . . . . . . . . . . . Trap Hack Attempts 130 | . 46 75 . . . . . . . . . . . . 9 . . . . Triggered . | . . . . . . . . . . . . . . . . . . . . Disarmed 7 | . 2 1 . . . . . . . . . . . . 4 . . . . Reprogrammed 6 | . . 4 . . . . . . . . . . . . 2 . . . . Reused 15 | . . . . . . . . . 1 1 3 . 2 . 8 . . . . Traps Extracted 6 | . . 4 . . . . . . . . . . . . 2 . . . . Installed 20 | . . . . . . . . 2 1 3 4 . 2 . 8 . . . . Triggered 16 | . . . . . 1 . . . 1 1 3 . 2 . 8 . . . . Fabricated Traps 10 | . . . . . . . . . . . . . 2 . 8 . . . . Most Traps Carried 4 | . . 4 4 4 3 4 4 4 2 4 4 . 2 . 4 . . . . Machines | -11 -10 -9 -8 -7 -7 -7 -7 -6 -6 -6 -6 -6 -5 -5 -5 -5 -5 -4 -4 ---------- Run | Yrd Mat Mat Mat Fac Low Low Zio Pro Fac Low Low Dat Pro Fac Ext Cet Arc Fac Was Machines Disabled 11 | . . . 4 1 . . . . . 1 . . . . 4 . 1 . . Max in Single Turn 1 | . . . 1 1 . . . . . 1 . . . . 1 . . . . Garrison Access 2 | . . . . . . . . . . . . . . 2 . . . . . Energy Cycler 1 | . . . . . . . . . . . . . . . 1 . . . . Machines Repaired . | . . . . . . . . . . . . . . . . . . . . Machines Dismantled . | . . . . . . . . . . . . . . . . . . . . Machines Sabotaged . | . . . . . . . . . . . . . . . . . . . . Overloaded Fab Kills . | . . . . . . . . . . . . . . . . . . . . Hacking | -11 -10 -9 -8 -7 -7 -7 -7 -6 -6 -6 -6 -6 -5 -5 -5 -5 -5 -4 -4 --------- Run | Yrd Mat Mat Mat Fac Low Low Zio Pro Fac Low Low Dat Pro Fac Ext Cet Arc Fac Was Machines Accessed 71 | . 9 11 12 7 1 1 . . 5 1 3 4 . 7 7 1 . 2 . Terminals 32 | . 6 6 7 4 . . . . . . . . . 1 7 1 . . . Fabricators 4 | . . . . . . . . . 1 . . . . 2 . . . 1 . Repair Stations 6 | . 1 2 1 1 . . . . 1 . . . . . . . . . . Recycling Units 7 | . 2 1 2 . . . . . . . . . . 1 . . . 1 . Scanalyzers 8 | . . 2 1 1 . . . . 3 . . . . 1 . . . . . Garrison Access 4 | . . . 1 1 . . . . . . . . . 2 . . . . . Total Hacks 208 | . 23 37 37 17 1 1 . . 7 1 9 29 . 16 20 2 . 8 . Successful 127 | . 6 25 21 4 1 1 . . 4 1 9 29 . 7 11 . . 8 . Failed 81 | . 17 12 16 13 . . . . 3 . . . . 9 9 2 . . . Catastrophic 15 | . 3 2 5 2 . . . . . . . . . 1 1 1 . . . Database Lockouts . | . . . . . . . . . . . . . . . . . . . . Manual 53 | . 6 13 15 5 . . . . . . . . . . 9 1 . 4 . Terminals 87 | . 14 19 21 9 . . . . . . . . . 2 20 2 . . . Fabricators 11 | . . . . . . . . . 1 . . . . 6 . . . 4 . Repair Stations 13 | . 4 4 2 2 . . . . 1 . . . . . . . . . . Recycling Units 18 | . 5 2 6 . . . . . . . . . . 1 . . . 4 . Scanalyzers 32 | . . 12 7 4 . . . . 5 . . . . 4 . . . . . Garrison Access 6 | . . . 1 2 . . . . . . . . . 3 . . . . . Terminal Hacks 70 | . 3 7 8 1 1 1 . . . 1 9 29 . . 10 . . . . Record 19 | . . . . . . . . . . . 7 11 . . 1 . . . . Part Schematic 10 | . . . . . . . . . . . . 10 . . . . . . . Robot Schematic 5 | . . . . . . . . . . . . 5 . . . . . . . Robot Analysis 1 | . 1 . . . . . . . . . . . . . . . . . . Prototype ID Bank 5 | . . 1 1 . . . . . . . . 3 . . . . . . . Open Door 5 | . . . . . 1 1 . . . 1 2 . . . . . . . . Branch Access Points 3 | . . 1 1 1 . . . . . . . . . . . . . . . Unreport Threat 5 | . . 1 2 . . . . . . . . . . . 2 . . . . Locate Traps 3 | . 1 . 2 . . . . . . . . . . . . . . . . Disarm Traps 3 | . . . . . . . . . . . . . . . 3 . . . . Transport Status 1 | . . 1 . . . . . . . . . . . . . . . . . Recall Reinforcements 1 | . . . . . . . . . . . . . . . 1 . . . . Hauler Manifests 2 | . 1 1 . . . . . . . . . . . . . . . . . Zone Layout 7 | . . 2 2 . . . . . . . . . . . 3 . . . . Fabricator Hacks 6 | . . . . . . . . . 1 . . . . 2 . . . 3 . Network Status 4 | . . . . . . . . . 1 . . . . 2 . . . 1 . Load Schematic 1 | . . . . . . . . . . . . . . . . . . 1 . Build 1 | . . . . . . . . . . . . . . . . . . 1 . Repair Station Hacks 8 | . 1 4 1 2 . . . . . . . . . . . . . . . Scan Component 5 | . 1 2 1 1 . . . . . . . . . . . . . . . Repair 3 | . . 2 . 1 . . . . . . . . . . . . . . . Recycling Unit Hacks 2 | . . . 1 . . . . . . . . . . . . . . 1 . Retrieve Components 2 | . . . 1 . . . . . . . . . . . . . . 1 . Scanalyzer 24 | . . 10 7 1 . . . . 3 . . . . 3 . . . . . Insert Component 13 | . . 4 4 1 . . . . 2 . . . . 2 . . . . . Analyze 11 | . . 6 3 . . . . . 1 . . . . 1 . . . . . Garrison Access Hacks 3 | . . . 1 . . . . . . . . . . 2 . . . . . Unlock Access 1 | . . . 1 . . . . . . . . . . . . . . . . Seal Access 2 | . . . . . . . . . . . . . . 2 . . . . . Unauthorized Hacks 14 | . 2 4 3 . . . . . . . . . . . 1 . . 4 . Terminals 6 | . . 3 2 . . . . . . . . . . . 1 . . . . Track 3 | . . 1 1 . . . . . . . . . . . 1 . . . . Botnet 3 | . . 2 1 . . . . . . . . . . . . . . . . Fabricators 1 | . . . . . . . . . . . . . . . . . . 1 . Prioritize 1 | . . . . . . . . . . . . . . . . . . 1 . Repair Stations . | . . . . . . . . . . . . . . . . . . . . Recycling Units 7 | . 2 1 1 . . . . . . . . . . . . . . 3 . Reject 1 | . . . . . . . . . . . . . . . . . . 1 . Recyclers 1 | . . . . . . . . . . . . . . . . . . 1 . Mask 2 | . . . 1 . . . . . . . . . . . . . . 1 . Tunnel 3 | . 2 1 . . . . . . . . . . . . . . . . . Scanalyzers . | . . . . . . . . . . . . . . . . . . . . Garrison Access . | . . . . . . . . . . . . . . . . . . . . Data Cores Recovered 1 | . . . . . . . . . . . . . . . 1 . . . . Used 1 | . . . . . . . . . . . . . . . 1 . . . . Hacking Detections 56 | . 9 11 12 6 . . . . 4 . . . . 5 6 1 . 2 . Full Trace Events 6 | . 2 . 2 1 . . . . . . . . . . . . . 1 . Feedback Events . | . . . . . . . . . . . . . . . . . . . . Feedback Blocked . | . . . . . . . . . . . . . . . . . . . . Robot Schematics Acquired 8 | . . . . . . . 3 . . . . 5 . . . . . . . Robots Built . | . . . . . . . . . . . . . . . . . . . . Authchips . | . . . . . . . . . . . . . . . . . . . . Time . | . . . . . . . . . . . . . . . . . . . . Total Robot Build Rating . | . . . . . . . . . . . . . . . . . . . . Part Schematics Acquired 34 | . . 4 3 . . . 16 . . . . 10 . 1 . . . . . Parts Built 1 | . . . . . . . . . . . . . . . . . . 1 . Authchips . | . . . . . . . . . . . . . . . . . . . . Time 84 | . . . . . . . . . . . . . . . . . . 84 . Total Part Build Rating 6 | . . . . . . . . . . . . . . . . . . 6 . Parts Repaired 3 | . . 2 . 1 . . . . . . . . . . . . . . . Time 96 | . . 64 . 32 . . . . . . . . . . . . . . . Parts Recycled . | . . . . . . . . . . . . . . . . . . . . Recycled Matter . | . . . . . . . . . . . . . . . . . . . . Retrieved Matter . | . . . . . . . . . . . . . . . . . . . . Retrieved Components 11 | . . . 9 . . . . . . . . . . . . . . 2 . Parts Scanalyzed 10 | . . 4 3 1 . . . . 1 . . . . 1 . . . . . Part Schematics Acquired 8 | . . 4 3 . . . . . . . . . . 1 . . . . . Parts Damaged . | . . . . . . . . . . . . . . . . . . . . Bothacking | -11 -10 -9 -8 -7 -7 -7 -7 -6 -6 -6 -6 -6 -5 -5 -5 -5 -5 -4 -4 ------------ Run | Yrd Mat Mat Mat Fac Low Low Zio Pro Fac Low Low Dat Pro Fac Ext Cet Arc Fac Was Used RIF Installer . | . . . . . . . . . . . . . . . . . . . . Robots Hacked 1 | . 1 . . . . . . . . . . . . . . . . . . Non-combat 1 | . 1 . . . . . . . . . . . . . . . . . . Combat . | . . . . . . . . . . . . . . . . . . . . Robot Hacks Applied 1 | . 1 . . . . . . . . . . . . . . . . . . parse_system 1 | . 1 . . . . . . . . . . . . . . . . . . Relay Couplers Released . | . . . . . . . . . . . . . . . . . . . . Fabnet Peak Effective % . | . . . . . . . . . . . . . . . . . . . . Robots Rewired 9 | . . . . . . . . . . . . . . . 9 . . . . Allies Hacked . | . . . . . . . . . . . . . . . . . . . . Hacks Repelled . | . . . . . . . . . . . . . . . . . . . . Allies | -11 -10 -9 -8 -7 -7 -7 -7 -6 -6 -6 -6 -6 -5 -5 -5 -5 -5 -4 -4 -------- Run | Yrd Mat Mat Mat Fac Low Low Zio Pro Fac Low Low Dat Pro Fac Ext Cet Arc Fac Was Total Allies 32 | . . . . . . . . . . . 3 . . . 23 5 . 1 . Largest Group 13 | . . . . . . . . . . . 3 . . . 12 13 13 1 . Highest-Rated Group 833 | . . . . . . . . . . . 93 . . . 480 833 833 26 . Highest-Rated Ally 159 | . . . . . . . . . . . 31 . . . 159 153 153 26 . Total Orders 11 | . . . . . . . . . 3 . . . . 2 2 2 . 2 . STAY 1 | . . . . . . . . . . . . . . . . 1 . . . FOLLOW 1 | . . . . . . . . . . . . . . . . 1 . . . RETURN 9 | . . . . . . . . . 3 . . . . 2 2 . . 2 . Ally Attacks 217 | . . . . . . . . . . . 9 . . . 141 28 39 . . Total Damage 5191 | . . . . . . . . . . . 129 . . . 3036 621 1405 . . Kills 37 | . . . . . . . . . . . 1 . . . 25 6 5 . . Allies Corrupted . | . . . . . . . . . . . . . . . . . . . . Allies Melted . | . . . . . . . . . . . . . . . . . . . . Intel | -11 -10 -9 -8 -7 -7 -7 -7 -6 -6 -6 -6 -6 -5 -5 -5 -5 -5 -4 -4 ------- Run | Yrd Mat Mat Mat Fac Low Low Zio Pro Fac Low Low Dat Pro Fac Ext Cet Arc Fac Was Robot Analysis Total 1 | . 1 . . . . . . . . . . . . . . . . . . Derelict Logs Recovered 11 | . . . . . 2 1 2 2 . 2 1 . 1 . . . . . . Drone Launches 9 | . . . . . . . . . 3 . . . . 2 2 . . 2 . Drone Recoveries 9 | . . . . . . . . . 3 . . . . 2 2 . . 2 . Exploration | -11 -10 -9 -8 -7 -7 -7 -7 -6 -6 -6 -6 -6 -5 -5 -5 -5 -5 -4 -4 ------------- Run | Yrd Mat Mat Mat Fac Low Low Zio Pro Fac Low Low Dat Pro Fac Ext Cet Arc Fac Was Turns Passed 22182 | 155 2264 6187 3529 462 247 515 302 528 301 677 794 27 684 460 3186 326 805 563 170 Spaces Moved 18251 | 73 900 1650 1147 925 630 758 812 967 625 1321 1376 82 1042 962 3663 246 485 439 148 Core 55 | 7 . . . . . . . . . . . . . . . . 47 1 . Treads 3596 | 66 900 1480 1143 . . . . . . . . . . . . . . 7 . Legs . | . . . . . . . . . . . . . . . . . . . . Wheels 170 | . . 170 . . . . . . . . . . . . . . . . . Hover 1639 | . . . . . . . . . . . . . . . 784 . 276 431 148 Flight 12791 | . . . 4 925 630 758 812 967 625 1321 1376 82 1042 962 2879 246 162 . . Fastest Speed 27 | 50 160 160 240 28 28 28 28 31 31 31 31 31 31 27 27 34 34 52 77 Average Speed 82 | 153 197 312 242 28 28 28 30 31 31 31 31 31 31 27 34 35 133 60 78 Slowest Speed 950 | 160 320 400 521 28 28 28 31 31 31 31 31 31 107 27 197 116 950 550 150 Overloaded Moves . | . . . . . . . . . . . . . . . . . . . . Propulsion Burnouts . | . . . . . . . . . . . . . . . . . . . . Robots Hopped 43 | . . . . 20 . . . . 1 1 1 . . . 20 . . . . Cave-ins Triggered 1 | . . . . . . . . . . . . . . . . . . 1 . Exploration Rate (%) 66 | 6 97 99 83 24 83 77 83 85 21 91 94 70 87 27 87 59 96 10 60 Regions Visited 19 Branch Regions 11 Pre-discovered Areas 9 | . 2 1 . . . . 3 . . . 2 1 . . . . . . . Known Exits Taken 14 | . . . . 1 1 1 1 1 1 1 1 1 1 1 1 1 1 . . Unknown Exits Taken 4 | 1 1 1 1 . . . . . . . . . . . . . . . . Scrap Searched 22 | . . . . . 2 2 5 5 . 4 2 . 2 . . . . . . Spaces Dug 288 | . 1 20 39 39 14 11 . 36 19 18 15 . 18 33 6 1 . 18 . Terrain Destroyed 480 | . 1 22 62 39 15 11 . 80 19 19 16 . 29 33 9 1 . 124 . Melee 196 | . . 19 12 39 10 8 . 15 18 14 6 . 7 29 5 1 . 13 . Projectile 58 | . 1 1 2 . 5 3 . 7 1 5 4 . 6 4 4 . . 15 . AOE 226 | . . 2 48 . . . . 58 . . 6 . 16 . . . . 96 . Terrain Rammed . | . . . . . . . . . . . . . . . . . . . . Walls Destroyed . | . . . . . . . . . . . . . . . . . . . . Machines Disabled . | . . . . . . . . . . . . . . . . . . . . Actions | -11 -10 -9 -8 -7 -7 -7 -7 -6 -6 -6 -6 -6 -5 -5 -5 -5 -5 -4 -4 --------- Run | Yrd Mat Mat Mat Fac Low Low Zio Pro Fac Low Low Dat Pro Fac Ext Cet Arc Fac Was Total 24031 | 97 1239 2413 1630 1030 666 1035 870 1143 699 1544 1714 82 1363 1108 5508 468 602 616 204 Wait 3756 | . 97 354 127 49 5 248 34 123 34 180 295 . 275 61 1576 198 19 60 21 Move 18156 | 72 899 1649 1146 889 629 757 811 966 622 1318 1373 81 1041 961 3626 245 484 439 148 Hop 34 | . . . . 15 . . . . 1 1 1 . . . 16 . . . . Pick Up 222 | 8 31 44 37 9 1 . 6 1 3 1 3 . 3 17 25 3 18 9 3 Fast Attach 86 | 7 3 12 12 1 . . 3 . 1 . 3 . 1 1 20 2 11 8 1 Attach 55 | . . 4 9 5 . . 1 . 2 . . . 2 2 13 2 4 6 5 Detach 27 | . 1 3 5 2 . . . . . . . . . . 10 . 2 1 3 Swap 273 | . 26 55 49 5 10 13 4 15 12 15 11 1 13 17 16 1 4 6 . Drop 318 | . 33 63 80 9 1 2 10 1 4 1 6 . 6 13 47 5 27 6 4 Fire 490 | 10 87 130 144 . 8 4 . 16 1 5 6 . 8 4 16 2 . 49 . Melee 330 | . 2 20 16 46 12 11 1 19 18 20 12 . 12 32 35 10 33 31 . Ram 18 | . . . . . . . . . . . . . . . . . . . 18 Kick . | . . . . . . . . . . . . . . . . . . . . Crush 25 | . 14 4 5 . . . . . . . . . . . . . . 1 1 Escape Stasis 36 | . . . . . . . . . . . . . . . 36 . . . . Rewire 55 | . . . . . . . . . . . . . . . 55 . . . . Trap 150 | . 46 75 . . . . . 2 1 3 4 . 2 . 17 . . . . Miscellaneous . | . . . . . . . . . . . . . . . . . . . . Route ------- -11/Scrapyard -10/Materials (discovered 6 exits: *Mat x3 / [*Min x2] / [*Sub]) -9/Materials (discovered 5 exits: *Mat x3 / *Min x2) -8/Materials (discovered 5 exits: *Fac x2 / *Sto x2 / Gar) -7/Factory (discovered 2 exits: *Low x2) -7/Lower Caves (discovered 2 exits: *Low / *Zio) -7/Lower Caves (discovered 2 exits: *Fac / *Zio) -7/Zion -6/Proximity Caves -6/Factory (discovered 3 exits: Fac / *Low x2) -6/Lower Caves (discovered 2 exits: *Low / *Dat) -6/Lower Caves (discovered 2 exits: *Fac / *Dat) -6/Data Miner -5/Proximity Caves -5/Factory (discovered 4 exits: Fac / Upp / *Ext x2) -5/Extension (discovered 3 exits: *Fac x2 / *Cet) -5/Cetus -5/Archives (discovered 3 exits: *Fac / [*Hub x2]) -4/Factory -4/Waste History --------- Turn | Location | Event 20 | -11/Scrapyard | Discovered new exit (range 16) 156 | -11/Scrapyard | Entered Materials 301 | -10/Materials | Build established: Mutant 773 | -10/Materials | Discovered new exit (range 7) 837 | -10/Materials | Discovered new exit (range 7) 1115 | -10/Materials | Discovered new exit (range 14) 1147 | -10/Materials | Build established: Scavenger-Mutant 1434 | -10/Materials | Core integrity fell below 50% 1665 | -10/Materials | Build established: Mutant 1869 | -10/Materials | Discovered new exit (range 10) 2175 | -10/Materials | Discovered new exit (range 14) 2324 | -10/Materials | Discovered new exit (range 15) 2420 | -10/Materials | Entered another Materials area 2420 | -9/Materials | Evolved 2 slots: Propulsion x1, Utility x1 2780 | -9/Materials | Build established: Hauler-Mutant 3898 | -9/Materials | Repaired Imp. Treads 4709 | -9/Materials | Discovered new exit (range 3) 5284 | -9/Materials | Discovered new exit (range 9) 5607 | -9/Materials | Discovered new exit (range 5) 5975 | -9/Materials | Repaired Imp. Treads 6031 | -9/Materials | Identified exit to Mines 8519 | -9/Materials | Discovered new exit (range 14) 8607 | -9/Materials | Entered another Materials area 8607 | -8/Materials | Evolved 2 slots: Propulsion x1, Utility x1 9841 | -8/Materials | Identified exit to Storage 10028 | -8/Materials | Discovered new exit (range 8) 10292 | -8/Materials | Garrison activated, responded to threat 10661 | -8/Materials | Identified exit to Garrison 10731 | -8/Materials | Garrison activated, responded to threat 10807 | -8/Materials | Destroyed 7 combat bots 11048 | -8/Materials | Garrison activated, responded to threat 11807 | -8/Materials | First assault squad dispatched 11924 | -8/Materials | Discovered new exit (range 7) 12136 | -8/Materials | Entered Factory 12136 | -7/Factory | Evolved 2 slots: Propulsion x1, Utility x1 12298 | -7/Factory | Identified exit to Lower Caves 12402 | -7/Factory | Build established: Scout 12408 | -7/Factory | Repaired Cooling System 12598 | -7/Factory | Entered Lower Caves 12611 | -7/Lower Caves | Spotted B-75 Beast 12650 | -7/Lower Caves | Learned location of 1 exit from Factory 12751 | -7/Lower Caves | A Derelict revealed a hidden shortcut to a safe place 12753 | -7/Lower Caves | Identified exit to Zion 12814 | -7/Lower Caves | Discovered new exit (range 12) 12820 | -7/Lower Caves | Identified exit to Lower Caves 12845 | -7/Lower Caves | Entered another Lower Caves area 12872 | -7/Lower Caves | Discovered new exit (range 8) 12874 | -7/Lower Caves | Identified exit to Factory 12970 | -7/Lower Caves | Discovered exit to Zion (range 9) 13360 | -7/Lower Caves | Entered Zion 13392 | -7/Zion | Discovered new exit (range 11) 13395 | -7/Zion | Identified exit to Proximity Caves 13448 | -7/Zion | Learned location of Quarantine (-3) 13480 | -7/Zion | Found Prototype Device 13501 | -7/Zion | Learned Factory terminal intel 13511 | -7/Zion | Learned location of Warlord (-4) 13564 | -7/Zion | Given the Hacking Drone Bay 13564 | -7/Zion | Found Prototype Device 13590 | -7/Zion | Learned Factory emergency access door positions 13662 | -7/Zion | Entered Proximity Caves 13678 | -6/Proximity Caves | Learned Factory non-interactive machine intel 13819 | -6/Proximity Caves | Learned 4 Factory zone layouts 14155 | -6/Proximity Caves | Discovered exit to Factory (range 12) 14190 | -6/Proximity Caves | Entered Factory 14190 | -6/Factory | Evolved 2 slots: Utility x2 14191 | -6/Factory | Identified exit to Lower Caves 14192 | -6/Factory | Identified exit to Factory 14195 | -6/Factory | Loaded intel: 259 non-interactive machine locations 14196 | -6/Factory | Loaded intel: 26 terminal locations 14204 | -6/Factory | Identified Hacking Drone Bay 14382 | -6/Factory | Identified Bomb Factory No. 2 14491 | -6/Factory | Entered Lower Caves 14492 | -6/Lower Caves | A Derelict revealed a hidden shortcut to meet someone special 14494 | -6/Lower Caves | Identified exit to Data Miner 14564 | -6/Lower Caves | Found Alien Artifact 14654 | -6/Lower Caves | Encountered a Warlord checkpoint 14760 | -6/Lower Caves | Learned Factory non-interactive machine intel 14943 | -6/Lower Caves | Discovered new exit (range 12) 15013 | -6/Lower Caves | Learned Factory terminal intel 15163 | -6/Lower Caves | Identified exit to Lower Caves 15168 | -6/Lower Caves | Entered another Lower Caves area 15170 | -6/Lower Caves | Discovered exit to Factory (range 9) 15546 | -6/Lower Caves | A Commander dispatched an escort 15548 | -6/Lower Caves | Learned 8 Factory zone layouts 15548 | -6/Lower Caves | Learned 8 Research zone layouts 15548 | -6/Lower Caves | Learned Extension emergency access door positions 15630 | -6/Lower Caves | Discovered exit to Data Miner (range 14) 15962 | -6/Lower Caves | Entered Data Miner 15962 | -6/Data Miner | Accompanied by 1 ally 15962 | -6/Data Miner | Discovered new exit (range 6) 15963 | -6/Data Miner | Commander's escort returned to base 15964 | -6/Data Miner | Identified exit to Proximity Caves 15968 | -6/Data Miner | Met Data Miner 15975 | -6/Data Miner | Learned location of Section 7 (-3) 15975 | -6/Data Miner | Acquired the access code to Warlord's prototype stash 15980 | -6/Data Miner | Received God Mode back door access code from Data Miner 15989 | -6/Data Miner | Entered Proximity Caves 15991 | -5/Proximity Caves | Spotter reported a threat 15992 | -5/Proximity Caves | Spotter reported a threat 16444 | -5/Proximity Caves | Learned 4 Factory zone layouts 16638 | -5/Proximity Caves | Discovered exit to Factory (range 10) 16673 | -5/Proximity Caves | Entered Factory 16673 | -5/Factory | Evolved 2 slots: Power x1, Propulsion x1 16674 | -5/Factory | Identified exit to Upper Caves 16674 | -5/Factory | Identified exit to Extension 16675 | -5/Factory | Identified exit to Factory 16676 | -5/Factory | Loaded intel: 217 non-interactive machine locations 16677 | -5/Factory | Loaded intel: 28 terminal locations 16690 | -5/Factory | Found Prototype Processor 16692 | -5/Factory | Identified Exp. Targeting Computer 16748 | -5/Factory | Spotted B-75 Beast 16973 | -5/Factory | Search patrols dispatched 17133 | -5/Factory | Entered Extension 18465 | -5/Extension | Spotted B-75 Beast 18609 | -5/Extension | Rescued a captive Derelict 18615 | -5/Extension | Rescued a captive Derelict 18616 | -5/Extension | Rescued a captive Derelict 18625 | -5/Extension | Rescued a captive Derelict 18625 | -5/Extension | Rescued a captive Derelict 18628 | -5/Extension | Rescued a captive Derelict 18639 | -5/Extension | Rescued a captive Derelict 18668 | -5/Extension | Build established: Sprinter 18743 | -5/Extension | Rescued a captive Derelict 18743 | -5/Extension | Rescued a captive Derelict 18760 | -5/Extension | Rescued a captive Derelict 19046 | -5/Extension | Spotted B-75 Beast 19046 | -5/Extension | Allies destroyed B-75 Beast 19092 | -5/Extension | Lost 6 allies 19250 | -5/Extension | Rescued A7 19256 | -5/Extension | Energy Cycler disabled 19258 | -5/Extension | Rescued a captive Derelict 19266 | -5/Extension | Rescued a captive Derelict 19267 | -5/Extension | Rescued a captive Derelict 19360 | -5/Extension | Lost 3 allies 19399 | -5/Extension | Discovered exit to Factory (range 15) 19824 | -5/Extension | Build established: Scavenger-Mutant 20035 | -5/Extension | Discovered exit to Factory (range 10) 20035 | -5/Extension | Discovered new exit (range 6) 20069 | -5/Extension | Identified exit to Cetus 20167 | -5/Extension | Build established: Commander-Mutant 20319 | -5/Extension | Entered Cetus 20319 | -5/Cetus | Accompanied by 12 allies (A7) 20324 | -5/Cetus | Acquired a Cetus Manufacturing Module code from A7 20332 | -5/Cetus | Spotted Cetus Guard 20332 | -5/Cetus | Spotted Cetus Guard 20335 | -5/Cetus | Spotted Cetus Guard 20335 | -5/Cetus | Spotted Cetus Guard 20340 | -5/Cetus | Allies destroyed Cetus Guard 20345 | -5/Cetus | Allies destroyed Cetus Guard 20350 | -5/Cetus | Allies destroyed Cetus Guard 20351 | -5/Cetus | Allies destroyed Cetus Guard 20377 | -5/Cetus | Lost 4 allies 20425 | -5/Cetus | Discovered new exit (range 15) 20467 | -5/Cetus | Escorted A7 to Cetus Mainframe 20480 | -5/Cetus | Started Cetus Manufacturing Module 20505 | -5/Cetus | Manufactured an Enhanced Grunt 20530 | -5/Cetus | Manufactured an Enhanced Grunt 20555 | -5/Cetus | Manufactured an Enhanced Grunt 20580 | -5/Cetus | Manufactured an Enhanced Grunt 20603 | -5/Cetus | Identified exit to Archives 20605 | -5/Cetus | Manufactured an Enhanced Grunt 20645 | -5/Cetus | Entered Archives 20645 | -5/Archives | Accompanied by 13 allies (A7) 20650 | -5/Archives | Received a hacking code to weaken MAIN.C 20693 | -5/Archives | Discovered new exit (range 16) 20700 | -5/Archives | Lost 3 allies 20706 | -5/Archives | Discovered new exit (range 16) 20725 | -5/Archives | Discovered exit to Factory (range 15) 21381 | -5/Archives | Murdered 5 allies 21438 | -5/Archives | Found Prototype Device 21438 | -5/Archives | Identified Exp. Thermal Shield 21450 | -5/Archives | Entered Factory 21450 | -4/Factory | Evolved 2 slots: Utility x1, Weapon x1 21457 | -4/Factory | Murdered 4 allies 21845 | -4/Factory | Fabricated Combat Drone Bay? 21920 | -4/Factory | Lost 3 parts (1u2w) 21932 | -4/Factory | Crushed by falling debris 22012 | -4/Factory | Lost 11 parts (2p5n1u3w) 22013 | -4/Factory | Manually triggered Chute Trap 22013 | -4/Factory | Sucked down chute 22013 | -4/Factory | Entered Waste 22092 | -4/Waste | Spotted C-40 Crusher 22111 | -4/Waste | Spotted C-40 Crusher 22115 | -4/Waste | Spotted C-40 Crusher 22117 | -4/Waste | Spotted C-40 Crusher 22117 | -4/Waste | Spotted C-40 Crusher 22155 | -4/Waste | Crushed by Compactor (1 part destroyed, 1 dropped) 22156 | -4/Waste | Crushed by Compactor (1 part destroyed, 1 dropped) 22161 | -4/Waste | Crushed by Compactor (1 part destroyed, 1 dropped) 22165 | -4/Waste | Crushed by Compactor (1 part destroyed, 2 dropped) 22166 | -4/Waste | Core integrity fell below 50% 22166 | -4/Waste | Crushed by Compactor (1 part destroyed) 22172 | -4/Waste | System corruption reached 10% 22176 | -4/Waste | Core integrity fell below 20% 22183 | -4/Waste | Destroyed by C-40 Crusher with Compactor Last Messages --------------- 22163_ Lgt. Nuclear Core crushed. 22163_ Broken Hdn. Centrium Wheel crushed. 22163_ Micro-nuke Launcher crushed. 22164_ Great Maul crushed. 22165_ Slammed into C-40 Crusher. 22165_ Adv. Transmission Jammer crushed. 22165_ Imp. Hacking Suite crushed. 22165_ Med. Treads crushed. 22165_ Cmb. Gravmag System crushed. 22166_ Med. Treads crushed. 22166_ Imp. System Shield crushed. 22166_ Slammed into C-40 Crusher. 22166_ Adv. Energy Well crushed. 22166_ Adv. Datajack crushed. 22167_ Slammed into C-40 Crusher. 22171_ Destabilizing: System corrupted (+2). 22172_ Slammed into C-40 Crusher. 22174_ Destabilizing: System corrupted (+1). 22175_ System corrupted: Matter fused (-9). 22175_ Slammed into C-40 Crusher. Map ----- +----------------------------------------------------+ | ?????????????????????????????????????????????????? | | ?????????????????????????????????????????????????? | | ?????????????????????????????????????????????????? | | ?????????????????????????????????????????????????? | | ?????????????????????????????????????????????????? | | ?????????????????????????????????????????????????? | | ?????????????????????????????????????????????????? | | ?????????????????????????????????????????????????? | | ?????????????????????????????????????????????????? | | ?????????????????????????????????????????????????? | | ?????????????????????????????????????????????????? | | ?????????????????????????????????????????????????? | | ?????????????????????????????????????????????????? | | ???????????????????##########????????????????????? | | ???????????????????# #????????????????????? | | ???????????????????#] #????????????????????? | | ???????????????????# #????????????????????? | | ???????????????????# #????????????????????? | | ???????????????????# #????????????????????? | | ???????????????????# #????????????????????? | | ???????????????????# #????????????????????? | | ###????????????????# #????????????????????? | | #????????????????###CCCC###????????????????????? | | #??????????????????#CCCC#??????????????????????? | | #??????????????????# CC!#??????????????????????? | | #??????# ?????????# CC@#????????? ????????????? | | ######## ######## CC######## #??????????? | | CC ??????????? | | ??????????? | | ??????????? | | ??????????? | | ######## ######## ######## #??????????? | | #??????# ?????????# #????????? ???????????? | | #??????#? ????????# #??????????????????????? | | #??????# ???????# #??????????????????????? | | #??????# ######## ######## ???????????? | | #??????# ???????????? | | #??????# ???????????? | | #??????# ???????????? | | #??????# ???????????? | | #??????# ######## ######## ???????????? | | #??????# #??????# #??????????????????????? | | #??????# #??????# #??????????????????????? | | #??????# #??????# #??????????????????????? | | ######## ######## #??????????????????????? | | #??????????????????????? | | #??????????????????????? | | #??????????????????????? | | #??????????????????????? | | ######## ######## #??????????????????????? | +----------------------------------------------------+ Best States ------------- Heat Dissipation 85 Energy Generation 34 Energy Capacity 280 Matter Stores 300 Matter Capacity 300 Sight Range 16 Robot Scan Range 16 Terrain Scan Range 24 Terrain Scan Density 10 Jamming Range 16 Additional Mass Support 9 Armor Coverage 450 Utility Shielding 66 Evasion (%) 64 Melee Accuracy 5 Recoil Reduction 4 Offensive Hacking 12 Defensive Hacking 12 Trap Extractor Capacity 8 Item Schematics ----------------- Cooling System | -9/Materials | Scanalyzed Datajack | -9/Materials | Scanalyzed Transport Network Coupler | -9/Materials | Scanalyzed Plasma Cutter | -9/Materials | Scanalyzed Lgt. Nuclear Core | -8/Materials | Scanalyzed Imp. Flight Unit | -8/Materials | Scanalyzed Trap Extractor | -8/Materials | Scanalyzed Gauss Rifle | -7/Zion | Archive System Guard | -7/Zion | Archive HERF Cannon | -7/Zion | Archive 0b10 Decoder Chip [Looter] | -7/Zion | Archive Hvy. Rocket Launcher | -7/Zion | Archive Enh. Optical Array | -7/Zion | Archive Kinecellerator | -7/Zion | Archive Mni. Drone Bay | -7/Zion | Archive Imp. Weapon Cycler | -7/Zion | Archive Proton Missile Launcher | -7/Zion | Archive Thermal Shield | -7/Zion | Archive Hvy. Ion Cannon | -7/Zion | Archive Imp. Core Shielding | -7/Zion | Archive Weapon Cycler | -7/Zion | Archive Hvy. Pick | -7/Zion | Archive Imp. Field Recycling Unit | -7/Zion | Archive Combat Drone Bay | -6/Data Miner | Free Lgt. Regenerative Plating | -6/Data Miner | Free Enh. Flexi-carbon Leg | -6/Data Miner | Free Prc. Matter Filter | -6/Data Miner | Free Ionic Axe | -6/Data Miner | Free Imp. Linear Gravjet | -6/Data Miner | Free Adv. Transmission Jammer | -6/Data Miner | Free Phase Gun | -6/Data Miner | Free Disruptor Cannon | -6/Data Miner | Free Mic. Antimatter Reactor | -6/Data Miner | Free Biomechanical Wings | -5/Factory | Scanalyzed Robot Schematics ------------------ L-41 Fighter | -7/Zion | Archive P-60 Hacker | -7/Zion | Archive A-02 Transporter | -7/Zion | Archive Y-54 Guardian | -6/Data Miner | Free A-15 Conveyor | -6/Data Miner | Free R-10 Processor | -6/Data Miner | Free A-27 Freighter | -6/Data Miner | Free G-67 Veteran | -6/Data Miner | Free Fabricated ------------ Combat Drone Bay | x1 | -4/Factory Alien Tech Used ----------------- None Achievements -------------- Cya! Challenges ------------ None Game ------ Seed CargoAdvancedTorch Manual? 0 Play Time 05:16:08 Cumulative 133.2 hours Start 2024.04.24 @ 20:18:25 End 2024.04.27 @ 02:59:57 Sessions 3 Manual Loads 0 Difficulty Rogue Special Mode None Game No. 74 Rogue 74 Adventurer 0 Explorer 0 Win Type - Total 4 Types 3/0/0/1/0/0/0/0/0 Lore% 58 Gallery% 77 Achievement% 53 Wizard Run 0 Options --------- Layout 2 ASCII 0 Keyboard 1 Movement Numpad Keybinds 0 Fullscreen 2 Font 32/Tamsyn Map View 50x44 Zoom Use 0% Tactical HUD 1 Map Filters NONE Filters NONE Steam 1 RUN: d9611f2c-5649-412d-b80c-8e5d0a233cbe